Cogmind - Beta 17 @@@ ROGUE MODE // 2026.08.01 @ 22:53:30 Player: Scuttle Result: Destroyed by S3-KNM(x) with Makeshift Spear Performance ------------- Evolutions (0) 0 Regions Visited (3) 600 Robots Destroyed (13) 65 Value Destroyed (289) 289 Prototype IDs (6) 120 Alien Tech Used (0) 0 Bonus (284) 284 TOTAL SCORE: 1358 Bonus ------- Registered with UFD 300 Friendly Fire -16 Cogmind --------- Core Integrity 0/250 Matter 281/300 Energy 100/100 System Corruption 0% Temperature Cool (0) Movement Core (500) Ox9 Location -8/Scraptown Parts ------- > --- POWER (1) -------- (None) > --- PROPULSION (2) --- (None) > --- UTILITY (2) ------ Improved Cooling System Large Storage Unit > --- WEAPON (2) ------- Barrage Gun Barrage Gun > --- INVENTORY (15) --- Nuclear Core Light Treads Overtuned Treads Advanced Signal Interpreter Advanced Targeting Computer A0-MCA's Component Scanner Autogun Barrage Gun Barrage Gun Battle Cannon CPS Tube (2) Peak State ------------ > --- POWER ------------ Deuterium Engine > --- PROPULSION ------- Light Treads Light Treads > --- UTILITY ---------- Improved Cooling System Large Storage Unit > --- WEAPON ----------- Barrage Gun Barrage Gun > --- INVENTORY -------- Light Treads Overtuned Treads Advanced Signal Interpreter Advanced Targeting Computer A0-MCA's Component Scanner Autogun Barrage Gun Barrage Gun Battle Cannon CPS Tube [Rating: 19] Favorites ----------- Power Deuterium Engine Engine Deuterium Engine Propulsion Light Treads Treads Light Treads Wheel Compact Wheel Utility Heat Sink Device Heat Sink Storage Large Storage Unit Protection Light Armor Plating Weapon Barrage Gun Energy Gun Small Laser Ballistic Gun Barrage Gun Build | -11 -10 -10 -8 ------- Run | Yrd Mat Sub Scr Slots Evolved . | . . . . Power . | . . . . Propulsion . | . . . . Utility . | . . . . Weapon . | . . . . Parts Attached 20 | 5 9 1 5 Power 4 | 1 2 . 1 Engine 4 | 1 2 . 1 Core . | . . . . Reactor . | . . . . Propulsion 4 | 2 2 . . Treads 3 | 1 2 . . Leg . | . . . . Wheel 1 | 1 . . . Hover . | . . . . Flight . | . . . . Utility 6 | . 4 . 2 Device 4 | . 3 . 1 Storage 1 | . . . 1 Processor . | . . . . Hackware . | . . . . Protection 1 | . 1 . . Artifact . | . . . . Weapon 6 | 2 1 1 2 Energy Gun 4 | 2 1 1 . Energy Cannon . | . . . . Ballistic Gun 2 | . . . 2 Ballistic Cannon . | . . . . Launcher . | . . . . Special Weapon . | . . . . Impact Weapon . | . . . . Slashing Weapon . | . . . . Piercing Weapon . | . . . . Special Melee Weapon . | . . . . Unidentified Prototypes . | . . . . Parts Lost 1 | . . . 1 Power 1 | . . . 1 Propulsion . | . . . . Utility . | . . . . Weapon . | . . . . Highest Loss Streak 1 | . . . 1 To Critical Strikes . | . . . . Average Backups 6 | 1 2 4 8 Power . | . . . . Propulsion 1 | . 1 1 1 Utility 1 | . 1 2 2 Weapon 2 | . . 1 3 Tool/Special . | . . . . Unused Backups 13 | 1 1 . 11 Power 1 | . . . 1 Propulsion 4 | 1 1 . 2 Utility 3 | . . . 3 Weapon 4 | . . . 4 Tool/Special 1 | . . . 1 Average Slot Usage (%) 96 | . 87 100 99 Engine 13 | . 14 14 13 Treads 25 | . 19 28 27 Wheel 2 | . 8 . . Device 13 | . 13 14 14 Storage 7 | . . . 10 Protection 4 | . 3 14 3 Energy Gun 14 | . 27 28 8 Ballistic Gun 13 | . . . 19 Peak Build Rating 19 | 5 9 7 19 Average Rating 12 | 4 6 7 14 On Entrance 4 | . 5 7 7 Avg Prop Armor Cover (%) 15 | 15 15 . . Naked Turns . | . . . . Heaviest Build 37 | 8 12 12 37 Greatest Support 40 | 20 40 40 40 Greatest Overweight (x) . | . . . . Average Overweight (x) . | . . . . Largest Inventory Capacity 15 | 5 5 5 15 Average Capacity 10 | 5 5 5 12 Most Carried 11 | 4 5 5 11 Average Carried 6 | 1 2 4 8 Final Capacity 15 | 5 5 5 15 Final Carried 11 | 3 4 5 11 Class Distribution -------------------- 100% | Mutant Dominant Class ---------------- Mutant | -10/Materials Mutant | -10/Subcaves Mutant | -8/Scraptown Resources | -11 -10 -10 -8 ----------- Run | Yrd Mat Sub Scr Matter Collected 406 | 134 212 . 60 Remotely . | . . . . Salvage Created 469 | 50 329 90 . Parts 31 | 4 23 4 . Haulers Intercepted 2 | . 2 . . Recyclers Shooed 2 | . 2 . . Parts Field Recycled . | . . . . Retrieved Matter . | . . . . Parts Self-Destructed . | . . . . Prevented . | . . . . Parts Restored . | . . . . Kills | -11 -10 -10 -8 ------- Run | Yrd Mat Sub Scr Combat Hostiles Destroyed 9 | . 7 2 . Guns 9 | . 7 2 . Classes Destroyed 6 | 1 4 1 . Tunneler 1 | . 1 . . Hauler 2 | . 2 . . Recycler 1 | 1 . . . Swarmer 3 | . 3 . . Grunt 4 | . 4 . . Subdweller 2 | . . 2 . Best Kill Streak 3 | 1 3 2 . Combat Bots Only 3 | . 3 2 . Max Kills in Single Turn 1 | 1 1 1 . Gunslinging . | . . . . Exploded . | . . . . Melee . | . . . . Uniques/NPCs Destroyed . | . . . . Combat | -11 -10 -10 -8 -------- Run | Yrd Mat Sub Scr Hostile Shots Fired 84 | . 40 12 32 Missed 10 | . 4 2 4 Hits 74 | . 36 10 28 Melee 15 | . . . 15 Projectile 59 | . 36 10 13 AOE 1 | . . 1 . Critical Strikes 7 | . 1 4 2 Damage Taken 990 | . 424 237 329 Core 257 | . 54 78 125 Absorbed by Shields . | . . . . Regen/Repaired (Parts) 175 | . 175 . . Core Remaining (%) 100 | 100 . . . Volleys Fired 58 | 5 38 12 3 Largest 2 | 2 2 2 2 Hottest 90 | 90 90 90 56 Shots Fired 116 | 10 76 24 6 Gun 116 | 10 76 24 6 Cannon . | . . . . Launcher . | . . . . Special . | . . . . Kinetic 6 | . . . 6 Thermal 110 | 10 76 24 . Explosive . | . . . . Electromagnetic . | . . . . Robot Hit Streak 12 | 2 12 12 3 Robot Miss Streak 3 | 2 2 3 1 Penetration Max . | . . . . Secondary Targets 1 | . 1 . . Max Gunslinging Chain 1 | . 1 . . Shots Hit Robots 82 | 6 54 18 4 Core Hits 26 | 2 19 5 . Critical Kills . | . . . . Critical Parts Destroyed . | . . . . Critical Strikes 5 | . 4 1 . Burn 5 | . 4 1 . Melee Attacks . | . . . . Impact . | . . . . Slashing . | . . . . Piercing . | . . . . Sneak Attacks . | . . . . Combat Hostiles . | . . . . Follow-up Attacks . | . . . . Damage Inflicted 974 | 69 645 210 50 Guns 965 | 69 636 210 50 Cannons . | . . . . Explosions . | . . . . Melee . | . . . . Ramming 9 | . 9 . . Kinetic 50 | . . . 50 Thermal 915 | 69 636 210 . Explosive . | . . . . Electromagnetic . | . . . . Impact . | . . . . Slashing . | . . . . Piercing . | . . . . Highest Corruption . | . . . . Average Corruption . | . . . . Corruption Purged . | . . . . Corruption Blocked . | . . . . Overload Shots . | . . . . Overflow Damage . | . . . . Projectiles . | . . . . Explosions . | . . . . Melee . | . . . . Knockbacks . | . . . . Impact . | . . . . Kinetic . | . . . . Secondary . | . . . . Self-Inflicted Damage . | . . . . Shots . | . . . . Rammed 5 | . 5 . . Targets Rammed 5 | . 5 . . Kicked . | . . . . Crushed . | . . . . Highest Temperature 90 | 90 90 . . Average Temperature 30 | 35 28 . . Received Heat Transfer 328 | . 201 54 73 Siege Activations . | . . . . Martial Activations . | . . . . Shielding Activations . | . . . . Robots Disrupted . | . . . . Combat Hostiles . | . . . . Robots Corrupted . | . . . . Combat Hostiles . | . . . . Parts Fried . | . . . . Impact Corruptions . | . . . . Robots Melted . | . . . . Combat Hostiles . | . . . . Parts Melted 2 | . 2 . . Heat Transferred 2800 | 186 1994 620 . Parts Sabotaged . | . . . . Parts Stolen 2 | . . . 2 Parts Stripped . | . . . . Power Chain Reactions . | . . . . Alert | -11 -10 -10 -8 ------- Run | Yrd Mat Sub Scr Maximum Alert Level . | . . . . Low Security (%) 100 | 100 100 . . Level 1 . | . . . . Level 2 . | . . . . Level 3 . | . . . . Level 4 . | . . . . Level 5 . | . . . . High Security . | . . . . Max Security . | . . . . Peak Influence 62 | 5 62 . . Initial 3 | . 3 . . Average 8 | . 9 . . Influence Increases 220 | 5 215 . . Destroy 0b10 Robot/C 140 | . 140 . . Destroy 0b10 Robot/NC 20 | 5 15 . . Destroy Leader 34 | . 34 . . Successful Hack 11 | . 11 . . Lose Combat Pursuer 15 | . 15 . . Influence Decreases 220 | . 220 . . Entered New Map 2 | . 2 . . Time Decay 218 | . 218 . . Squads Dispatched . | . . . . Investigation . | . . . . Extermination . | . . . . Reinforcement . | . . . . Assault . | . . . . Garrison . | . . . . Intercept . | . . . . Searches Triggered . | . . . . Construction Impeded . | . . . . Haulers Reinforced . | . . . . Active Scanning Responses . | . . . . Cargo Convoy Interrupts . | . . . . Stealth | -11 -10 -10 -8 --------- Run | Yrd Mat Sub Scr Distress Signals 1 | . 1 . . Communications Jammed . | . . . . Distress Signals . | . . . . Times Spotted 26 | . 15 2 9 Peak Tracking Total 11 | . 4 2 11 Tactical Retreats 1 | . 1 . . Traps | -11 -10 -10 -8 ------- Run | Yrd Mat Sub Scr Traps Triggered . | . . . . Indirectly . | . . . . Trap Hack Attempts . | . . . . Triggered . | . . . . Disarmed . | . . . . Reprogrammed . | . . . . Reused . | . . . . Traps Extracted . | . . . . Installed . | . . . . Triggered . | . . . . Machines | -11 -10 -10 -8 ---------- Run | Yrd Mat Sub Scr Machines Disabled . | . . . . Max in Single Turn . | . . . . Machines Repaired . | . . . . Machines Dismantled . | . . . . Machines Sabotaged . | . . . . Overloaded Fab Kills . | . . . . Hacking | -11 -10 -10 -8 --------- Run | Yrd Mat Sub Scr Machines Accessed 5 | . 3 . 2 Terminals 2 | . 2 . . Fabricators . | . . . . Repair Stations 1 | . 1 . . Recycling Units . | . . . . Scanalyzers . | . . . . Garrison Access . | . . . . Total Hacks 18 | . 12 . 6 Successful 14 | . 8 . 6 Failed 4 | . 4 . . Catastrophic . | . . . . Database Lockouts . | . . . . Manual 6 | . 6 . . Terminals 6 | . 6 . . Fabricators . | . . . . Repair Stations 6 | . 6 . . Recycling Units . | . . . . Scanalyzers . | . . . . Garrison Access . | . . . . Terminal Hacks 7 | . 1 . 6 Record 5 | . . . 5 Robot Analysis 1 | . 1 . . Proto ID Catalog 1 | . . . 1 Fabricator Hacks . | . . . . Repair Station Hacks 5 | . 5 . . Scan Component 2 | . 2 . . Repair 2 | . 2 . . Refit 1 | . 1 . . Recycling Unit Hacks . | . . . . Scanalyzer . | . . . . Garrison Access Hacks . | . . . . Unauthorized Hacks 2 | . 2 . . Terminals 2 | . 2 . . Botnet 2 | . 2 . . Fabricators . | . . . . Repair Stations . | . . . . Recycling Units . | . . . . Scanalyzers . | . . . . Garrison Access . | . . . . Data Cores Recovered . | . . . . Used . | . . . . Hacking Detections 2 | . 2 . . Full Trace Events . | . . . . Feedback Events . | . . . . Feedback Blocked . | . . . . Robot Schematics Acquired . | . . . . Robots Built . | . . . . Authchips . | . . . . Time . | . . . . Total Robot Build Rating . | . . . . Part Schematics Acquired . | . . . . Parts Built . | . . . . Authchips . | . . . . Time . | . . . . Total Part Build Rating . | . . . . Part Studies Acquired . | . . . . Parts Repaired 2 | . 2 . . Time 52 | . 52 . . Parts Recycled . | . . . . Recycled Matter . | . . . . Retrieved Matter . | . . . . Retrieved Components . | . . . . Parts Scanalyzed . | . . . . Part Schematics Acquired . | . . . . Parts Damaged . | . . . . Bothacking | -11 -10 -10 -8 ------------ Run | Yrd Mat Sub Scr Used RIF Installer . | . . . . Robots Hacked . | . . . . Non-combat . | . . . . Combat . | . . . . Robot Hacks Applied . | . . . . Relay Couplers Released . | . . . . Fabnet Peak Effective % . | . . . . Robots Rewired . | . . . . Allies Hacked . | . . . . Hacks Repelled . | . . . . Allies | -11 -10 -10 -8 -------- Run | Yrd Mat Sub Scr Total Allies . | . . . . Largest Group . | . . . . Highest-Rated Group . | . . . . Highest-Rated Ally . | . . . . Total Orders . | . . . . Ally Attacks . | . . . . Total Damage . | . . . . Kills . | . . . . Allies Corrupted . | . . . . Allies Melted . | . . . . Intel | -11 -10 -10 -8 ------- Run | Yrd Mat Sub Scr Active Infowar (turns) . | . . . . Robot Analysis Total 1 | . 1 . . Derelict Logs Recovered . | . . . . Drone Launches . | . . . . Drone Recoveries . | . . . . Exploration | -11 -10 -10 -8 ------------- Run | Yrd Mat Sub Scr Turns Passed 4249 | 71 1073 268 2837 Spaces Moved 2155 | 44 734 140 1237 Core 4 | 4 . . . Treads 1597 | 4 216 140 1237 Legs . | . . . . Wheels 554 | 36 518 . . Hover . | . . . . Flight . | . . . . Fastest Speed 50 | 50 100 160 160 Average Speed 144 | 100 117 160 160 Slowest Speed 160 | 160 160 160 160 Overloaded Moves . | . . . . Propulsion Burnouts . | . . . . Robots Hopped . | . . . . Potential Cave-ins . | . . . . Cave-ins Triggered . | . . . . Exploration Rate (%) 48 | 4 89 15 85 Regions Visited 3 Branch Regions 2 Pre-discovered Areas . | . . . . Known Exits Taken . | . . . . Unknown Exits Taken 3 | 1 1 1 . Scrap Searched 3 | . . . 3 Spaces Dug . | . . . . Terrain Destroyed . | . . . . Melee . | . . . . Projectile . | . . . . AOE . | . . . . Terrain Rammed . | . . . . Walls Destroyed . | . . . . Machines Disabled . | . . . . Actions | -11 -10 -10 -8 --------- Run | Yrd Mat Sub Scr Total 3174 | 58 864 160 2092 Wait 899 | . 64 5 830 Move 2152 | 43 733 139 1237 Hop . | . . . . Pick Up 18 | 4 3 2 9 Fast Attach 12 | 5 5 . 2 Attach . | . . . . Detach 5 | . 3 . 2 Swap 10 | . 6 1 3 Drop 15 | 1 7 1 6 Fire 58 | 5 38 12 3 Melee . | . . . . Ram . | . . . . Kick . | . . . . Crush 5 | . 5 . . Escape Stasis . | . . . . Rewire . | . . . . Trap . | . . . . Miscellaneous . | . . . . Route ------- -11/Scrapyard -10/Materials (discovered 6 exits: [*Mat x3] / [*Min x2] / [*Sub]) -10/Subcaves -8/Scraptown (discovered 2 exits: [*Fac x2]) History --------- Turn | Location | Event 3 | -11/Scrapyard | Discovered new exit (range 16) 72 | -11/Scrapyard | Entered Materials 73 | -10/Materials | Met a group of wandering Federalists 74 | -10/Materials | Discovered new exit (range 7) 100 | -10/Materials | Discovered new exit (range 6) 316 | -10/Materials | Build established: Mutant 447 | -10/Materials | Discovered new exit (range 16) 516 | -10/Materials | Discovered new exit (range 8) 771 | -10/Materials | Discovered new exit (range 9) 845 | -10/Materials | Repaired Lgt. Treads 872 | -10/Materials | Repaired Med. Laser 1048 | -10/Materials | Discovered new exit (range 14) 1145 | -10/Materials | Entered Subcaves 1146 | -10/Subcaves | Continued accompanying wandering Federalists (5) 1146 | -10/Subcaves | Approached by a straggling Scientist 1227 | -10/Subcaves | Core integrity fell below 50% 1413 | -10/Subcaves | Entered Scraptown 1535 | -8/Scraptown | Visited UFD Registry 1535 | -8/Scraptown | Registered with UFD as "Electroslider" 1615 | -8/Scraptown | Discovered new exit (range 11) 1655 | -8/Scraptown | Guru changed UFD alias to "Longstep" 2283 | -8/Scraptown | Visited Supply Room 2376 | -8/Scraptown | Visited TADAMA 2386 | -8/Scraptown | Visited Symbiants 2408 | -8/Scraptown | Visited The Evicted 2506 | -8/Scraptown | Visited Junk Repository 2586 | -8/Scraptown | Visited Curators Association 2613 | -8/Scraptown | Visited Scrapoid Pod Storage 2635 | -8/Scraptown | Visited Abandonware Association 2651 | -8/Scraptown | Learned abandonware demo "ERRANTS.EXE" 2651 | -8/Scraptown | Learned abandonware demo "MELTYB.EXE" 2678 | -8/Scraptown | Visited A0-MCA Data Center 2690 | -8/Scraptown | Given an A rating by A0-MCA 2693 | -8/Scraptown | Found A0-MCA's Component Scanner 2723 | -8/Scraptown | Received an X-ray algorithm 2734 | -8/Scraptown | Visited Supply Room 2773 | -8/Scraptown | Visited Science Testing Area 2792 | -8/Scraptown | Visited Scrapoid Research Area 2815 | -8/Scraptown | Visited Observation Area 2839 | -8/Scraptown | Visited Science Guys 3144 | -8/Scraptown | Discovered new exit (range 3) 4244 | -8/Scraptown | Attacked by Scraptown defenders 4249 | -8/Scraptown | Core integrity fell below 20% 4250 | -8/Scraptown | Destroyed by S3-KNM(x) with Makeshift Spear Last Messages --------------- 02972_ Found 63 Matter. 02973_ Acquired 40 matter. 02975_ Acquired Nuclear Core. 03144_ EXIT=FOUND 03145_ A derelict rushes over: "Longstep! Are you sure you want to leave so soon? Optimus wants to speak with you in the Council room." 03419_ DV-DO0(c): "Come one, come all! See for yourself a fine selection of the many wondrous pieces in our collection!" 03581_ A derelict rushes over: "Longstep! Are you sure you want to leave so soon? Optimus wants to speak with you in the Council room." 04244_ ANNOUNCEMENT: Intruder alert! Defend Scraptown! 04245_ C5-A73(r) follow-up attacks with Ripteeth. 04245_ Lgt. Treads ripped off. 04245_ Destroyed Ripteeth. 04246_ Z5-N4M(j): "I've dealt with worse than you! Then I woke up, so don't hurt me please." 04247_ Critical hit (Burn: +50). 04247_ Deuterium Engine destroyed. 04248_ C5-A73(r) follow-up attacks with Ripteeth. 04249_ Lgt. Treads ripped off. Map ----- +----------------------------------------------------+ | | | | | | | | | | | | | | | | | | | | | | | | | | | | | | | | | | | ?????????????????????????????????????????????????? | | ?###????????????????#########????????????????????? | | ?"""????????????????#"" ##???????????????????? | | "#???????????????#" < #?################### | | "" "#????#######????#"" E###"""""""""#""""""""" | | "" "#???#"""""""#???##### #?#" "#" " | | "" "#???#"" ""#???????# % #?#" """ " | | "#???#"" ""#???????# %%#?#" "#" "" " | | """###?#""" ""#???????#@r #?#" """ "#" " " | | #?#"" ""#??????#;rx ###" "#" " | | ###""" """######## ##"""""" ""#"" """""" | | j | | g | | cM j | | ###### ########### ##########"" """"#### | | #????# #?????????## ##????????#" "#??? | | #????" "?????#????#j #########?#" ""#??? | | #??? " " ????? ??# """"""""#?#" """#??? | | """ ""#??" "??### ### " ""#?#" """#??? | | """ "#? " " ?#"" """ "#?#"""""""#??? | | """ "#?"""" """"?#" """ " ""#?#######????? | | "" "#???## ##???#" " """"""""#????????????? | | " "#?"""" """"?#" ##"""####????????????? | | ?"" ""#? " " ?#" "" " ##############???????? | | ?## ###??" "??#" " #??# #???????? | | ??? ????? " " ???#"""""" #??# #???????? | | ???##??????" "????####### #??# #??###### | | #??????????# #??????????# #??# #??#""" | | ############ ############ #??# #??#" | | #??? #??#"" | | #???? #??#"" | | ######################### #????? #??#" [[ | | #??????????????????????# #??????? ???#" | +----------------------------------------------------+ Best States ------------- Heat Dissipation 52 Energy Generation 14 Energy Capacity 275 Matter Stores 300 Matter Capacity 300 Sight Range 16 Terrain Scan Density 10 Armor Coverage 150 Evasion (%) 40 Recoil Reduction 2 Item Schematics ----------------- None Robot Schematics ------------------ None Fabricated ------------ Nothing Repaired ---------- Lgt. Treads | 7% | -10/Materials Med. Laser | 34% | -10/Materials Studied --------- None Alien Tech Used ----------------- None Achievements -------------- None Challenges ------------ None Game ------ Seed LobotomyBarrageArmor Manual? 1 Play Time 00:13:34 Cumulative 554.2 hours Start 2026.08.01 @ 22:39:48 End 2026.08.01 @ 22:53:30 Sessions 1 Manual Loads 0 Difficulty Rogue Special Mode None Game No. 237 Rogue 237 Adventurer 0 Explorer 0 Win Type - Total 33 Types 15/3/4/2/1/2/2/2/1/1 Lore% 90 Gallery% 81 Achievement% 77 Wizard Run 0 Options --------- Layout 0 ASCII 0 Keyboard 1 Movement Arrows Keybinds 0 Fullscreen 2 Font 18/Terminus Map View 76x50 Zoom Use 0% Tactical HUD 1 Map Filters BRIGHTNESS(90)|SATURATION(90) Filters NONE Steam 1 RUN: d7e30c12-4ec8-461b-a3aa-4920f55041e1